bitfinex-derivatives/quotes_SOLF0:USTF0_20240824
["timestamp","ask_amount","ask_price","bid_price","bid_amount"]
[1724516798747,1.2247,160.96,160.88,23.9]
[1724516798956,1.2247,160.96,160.9,23.9]
[1724516799453,4.3296,160.96,160.92,3.1056]
[1724516799842,1.27191751,160.96,160.92,0.0441802]
[1724516800043,1.27191751,160.96,160.92,3.1497802]
[1724516800349,1.27191751,160.96,160.92,0.0441802]
[1724516800350,0.04721751,160.96,160.92,0.0441802]
[1724516800550,0.04721751,160.96,160.93,3.1053]
[1724516800745,0.04721751,160.96,160.92,0.0441802]
[1724516801054,0.04721751,160.96,160.93,3.1055]
[1724516801376,0.04721751,160.96,160.92,0.0441802]
[1724516802252,0.04721751,160.96,160.93,3.1055]
[1724516802447,0.04721751,160.96,160.92,23.9441802]
[1724516802756,1.0,161.0,160.96,3.1048]
[1724516803057,1.0,161.0,160.92,23.9]
[1724516803350,1.0,161.0,160.97,23.9]
[1724516803553,1.0,161.0,160.95,23.9]
[1724516803750,1.04039158,161.0,160.97,23.9]
[1724516803951,1.04593933,161.0,160.97,23.94031065]
[1724516804144,1.04593933,161.0,160.99,3.1043]
[1724516805252,3.1025,161.09,160.99,23.9]
[1724516805553,1.1971,161.18,161.05,23.9]
[1724516805855,23.9,161.14,161.03,23.9]
[1724516806053,1.3257,161.13,161.03,23.9]
[1724516806253,3.1024,161.09,161.06,0.04642088]
[1724516806454,0.04176806,161.1,161.06,0.04642088]
[1724516807751,3.1024,161.09,161.06,0.04642088]
[1724516807953,0.04176806,161.1,161.06,0.04642088]
[1724516808154,23.9,161.09,161.06,0.04642088]
[1724516808455,23.9,161.07,160.99,24.84]
[1724516808856,3.1034,161.05,161.0,3.1041]
[1724516809055,3.1034,161.05,160.99,24.84]
[1724516809056,1.2988,161.09,160.99,24.84]
[1724516809261,0.04170477,161.06,161.02,0.04242651]
[1724516809455,0.04170477,161.06,161.02,0.04644779]
[1724516809757,23.9,161.04,160.91,23.9]
[1724516809952,3.1038,161.02,160.96,3.1049]
[1724516810154,30.9808,161.32,161.0,23.9]
[1724516810359,23.9,161.15,161.03,23.9]
[1724516810596,4.43541546,161.14,161.03,23.9]
[1724516810766,0.04653729,161.11,161.07,0.04371877]
[1724516812749,0.04653729,161.11,161.07,23.94371877]
[1724516812949,61.73030407,161.67,161.13,3.1015]
[1724516812950,1.2761,161.2,161.13,3.1015]
[1724516813153,1.2761,161.2,161.1,23.9]
[1724516813354,23.9,161.19,161.09,1.2087]
[1724516813569,1.2761,161.2,161.09,1.2087]
[1724516813570,23.9,161.16,161.09,1.2087]
[1724516813852,0.04178237,161.14,161.11,0.04071739]
[1724516814049,0.04178237,161.14,161.11,3.14271739]
[1724516814363,0.04178237,161.14,161.11,0.04071739]
[1724516814549,0.04178237,161.14,161.12,3.1018]
[1724516815151,0.04178237,161.14,161.12,3.1017]
[1724516815452,0.04178237,161.14,161.11,0.04071739]
[1724516815859,0.04178237,161.14,161.13,3.1016]
[1724516816249,25.1414,161.24,161.17,3.1007]
[1724516816760,25.1414,161.24,161.11,23.9]
[1724516817057,25.1414,161.24,161.09,1.2087]
[1724516817058,1.2414,161.24,161.14,23.9]
[1724516817249,1.2414,161.24,161.18,3.1006]
[1724516817250,0.04683495,161.21,161.18,3.1006]
[1724516817849,0.04683495,161.21,161.19,3.1003]
[1724516818063,0.04683495,161.21,161.17,0.03998676]
[1724516818451,0.04683495,161.21,161.19,3.1003]
[1724516818666,0.04683495,161.21,161.17,23.93998676]
[1724516818961,0.04683495,161.21,161.17,0.03998676]
[1724516819861,0.04683495,161.21,161.19,3.1004]
[1724516820164,6.1934,161.4,161.19,23.9]
[1724516820358,23.9,161.33,161.19,23.9]
[1724516820570,23.9,161.33,161.22,3.0999]
[1724516820765,23.9,161.31,161.18,1.2741]
[1724516821061,23.9,161.26,161.13,23.9]
[1724516821258,3.8327,161.25,161.18,0.04427072]
[1724516821458,0.04246485,161.21,161.18,3.14497072]
[1724516821659,0.04246485,161.21,161.18,0.04427072]
[1724516822561,0.04246485,161.21,161.18,3.14497072]
[1724516822762,0.04246485,161.21,161.18,0.04427072]
[1724516823171,1.3201,161.28,161.18,0.04427072]
[1724516823370,1.3201,161.28,161.15,23.9]
[1724516823580,3.0999,161.22,161.16,3.1011]
[1724516823771,25.1779,161.27,161.13,23.9]
[1724516823964,23.9,161.25,161.13,23.9]
[1724516824166,23.9,161.25,161.17,0.04637358]
[1724516825264,3.0999,161.22,161.17,0.04637358]
[1724516825667,25.1779,161.27,161.17,0.04637358]
[1724516825871,1.2779,161.27,161.2,0.03934681]
[1724516826072,1.2779,161.27,161.22,0.04591194]
[1724516826276,3.0996,161.24,161.22,0.04591194]
[1724516826479,3.0996,161.24,161.16,23.9]
[1724516826981,25.1779,161.27,161.16,23.9]
[1724516827474,25.1779,161.27,161.2,0.04417815]
[1724516827475,3.14478415,161.23,161.2,0.04417815]
[1724516828175,0.04488415,161.23,161.2,0.04417815]
[1724516828474,0.04488415,161.23,161.2,23.94417815]
[1724516828882,0.04488415,161.23,161.22,3.0999]
[1724516829481,3.0986,161.29,161.2,23.9]
[1724516829779,25.1931,161.35,161.23,23.9]
[1724516830171,63.06314354,161.43,161.2,23.9]
[1724516830376,1.2032,161.4,161.28,23.9]
[1724516830578,1.2032,161.4,161.32,3.14424791]
[1724516830769,3.0969,161.38,161.32,0.04644791]
[1724516830969,1.2032,161.4,161.32,0.04644791]
[1724516831391,1.2032,161.4,161.33,23.9]
[1724516831777,1.2451,161.43,161.35,23.9]
[1724516831973,23.9,161.49,161.37,23.94532495]
[1724516832174,3.08248899,161.5,161.41,0.04560875]
[1724516832485,2.432,161.52,161.28,23.9]
[1724516832486,23.9,161.47,161.44,0.0467405]
[1724516832670,23.9,161.47,161.44,0.04160636]
[1724516832874,3.14106434,161.61,161.44,23.94160636]
[1724516833182,3.14106434,161.61,161.51,0.03973875]
[1724516833183,23.9,161.54,161.51,0.03973875]
[1724516833374,1.2288,161.58,161.51,0.04592504]
[1724516833375,25.1288,161.58,161.51,0.04592504]
[1724516833778,3.0942,161.52,161.51,0.04592504]
[1724516834590,6.72597511,161.67,161.51,0.04592504]
[1724516834794,3.68307114,161.67,161.57,0.04670466]
[1724516834987,3.0924,161.61,161.6,0.03945899]
[1724516835180,3.68307114,161.67,161.53,23.9]
[1724516835181,23.9,161.66,161.53,23.9]
[1724516835380,3.68307114,161.67,161.59,0.04552213]
[1724516835578,23.9,161.61,161.45,1.2272]
[1724516835777,23.9,161.56,161.43,23.9]
[1724516835976,23.9,161.53,161.41,23.9]
[1724516836676,23.9,161.51,161.39,1.2272]
[1724516836884,0.04376696,161.49,161.45,0.04153475]
[1724516837074,0.04468503,161.49,161.41,23.9]
[1724516837278,3.0952,161.47,161.45,0.04083403]
[1724516837582,0.04468503,161.49,161.45,0.04083403]
[1724516837884,3.0953,161.46,161.45,0.04083403]
[1724516838691,28.53,161.47,161.15,28.53]
[1724516838885,28.53,161.43,161.29,28.53]
[1724516839090,1.1965,161.49,161.29,28.53]
[1724516839284,1.1965,161.49,161.37,28.53]
[1724516839678,3.096,161.43,161.41,0.04273766]
[1724516839877,0.04281983,161.45,161.41,28.57273766]
[1724516840284,0.04281983,161.45,161.41,0.04273766]
[1724516840893,3.0961,161.42,161.41,0.04273766]
[1724516842090,0.04281983,161.45,161.41,0.04273766]
[1724516843493,3.0961,161.42,161.41,0.04273766]
[1724516844387,28.53,161.46,161.33,24.76]
[1724516844631,28.53,161.46,161.31,28.53]
[1724516844632,26.0257,161.6,161.37,28.53]
[1724516844885,3.0962,161.42,161.37,28.53]
[1724516845086,2.4715,161.49,161.37,28.53]
[1724516845290,1.2488,161.49,161.43,28.53]
[1724516845591,0.04351095,161.48,161.44,0.04091746]
[1724516845787,0.0395155,161.48,161.44,0.04547064]
[1724516846190,0.0395155,161.48,161.46,28.53]
[1724516846486,1.2402,161.55,161.46,28.53]
[1724516846686,28.53,161.59,161.45,1.2333]
[1724516846893,29.7702,161.57,161.45,1.2333]
[1724516847189,3.0939,161.54,161.45,1.2333]
[1724516847490,0.04179788,161.51,161.48,0.04506147]
[1724516847690,3.0947,161.5,161.48,0.04506147]
[1724516847895,0.04179788,161.51,161.48,0.04506147]
[1724516850388,3.0946,161.5,161.48,0.04506147]
[1724516850789,0.04179788,161.51,161.48,0.04506147]
[1724516851396,3.0946,161.5,161.48,0.04506147]
[1724516851793,0.04179788,161.51,161.48,0.04506147]
[1724516853187,1.2402,161.57,161.49,28.53]
[1724516853488,1.2402,161.57,161.51,28.53]
[1724516854118,1.2657,161.6,161.51,28.53]
[1724516854119,3.0936,161.55,161.52,0.0442541]
[1724516854299,0.04192801,161.56,161.53,28.53]
[1724516854988,3.0937,161.55,161.53,28.53]
[1724516855194,3.0937,161.55,161.52,0.0442541]
[1724516855395,0.04192801,161.56,161.52,0.0442541]
[1724516855794,3.094,161.53,161.52,0.0442541]
[1724516855994,0.04192801,161.56,161.52,0.0442541]
[1724516856298,0.04192801,161.56,161.54,28.53]
[1724516856693,0.04192801,161.56,161.52,0.0442541]
[1724516856694,0.04192801,161.56,161.52,28.5742541]
[1724516857090,0.04192801,161.56,161.54,28.53]
[1724516858103,0.04192801,161.56,161.53,1.3043]
[1724516858994,0.04192801,161.56,161.54,28.53]
[1724516859498,3.094,161.53,161.52,0.0442541]
[1724516860801,1.2745,161.65,161.42,28.53]
[1724516860999,1.2745,161.65,161.55,28.53]
[1724516861298,1.1995,161.64,161.52,28.53]
[1724516861500,1.1995,161.64,161.54,28.53]
[1724516861800,0.04729722,161.61,161.57,0.04530199]
[1724516862501,0.04729722,161.61,161.57,28.57530199]
[1724516863534,12.39731393,161.85,161.6,28.53]
[1724516863706,2.4872,161.75,161.63,28.53]
[1724516863899,2.4872,161.75,161.66,28.53]
[1724516864095,1.2311,161.75,161.66,28.53]
[1724516864299,3.0897,161.76,161.7,28.53]
[1724516864507,0.04531471,161.75,161.71,0.04141397]
[1724516864804,0.04531471,161.75,161.73,28.53]
[1724516867005,0.04531471,161.75,161.71,0.04141397]
[1724516868808,3.0903,161.72,161.71,0.04141397]
[1724516869307,28.53,161.85,161.71,28.53]
[1724516869513,1.2143,161.84,161.71,28.53]
[1724516869810,3.0892,161.79,161.73,28.53]
[1724516870000,1.2143,161.84,161.73,28.53]
[1724516870306,3.0892,161.78,161.77,0.04545334]
[1724516870515,0.04519149,161.79,161.76,0.04573939]
[1724516870701,0.04663407,161.79,161.76,0.04530956]
[1724516870905,3.0894,161.77,161.76,0.04530956]
[1724516872707,3.0904,161.72,161.68,28.53]
[1724516873109,1.3054,161.78,161.68,28.53]
[1724516873303,6.174,161.9,161.71,28.53]
[1724516873507,2.5186,161.85,161.73,28.53]
[1724516873706,0.03911739,161.81,161.77,0.04518101]
[1724516873910,3.0892,161.78,161.77,0.04518101]
[1724516874319,3.09,161.74,161.68,28.53]
[1724516874609,3.09,161.74,161.53,18.68]
[1724516874610,28.53,161.74,161.53,24.72]
[1724516874802,1.2185,161.73,161.59,28.53]
[1724516875410,0.04614741,161.68,161.64,0.04359139]
[1724516875815,28.53,161.71,161.57,28.53]
[1724516876013,3.0924,161.62,161.57,28.53]
[1724516876408,28.53,161.71,161.57,28.53]
[1724516876806,0.03982456,161.66,161.62,0.04550323]
[1724516877411,3.0921,161.63,161.62,0.04550323]
[1724516877811,0.03982456,161.66,161.62,28.57550323]
[1724516878110,1.2386,161.76,161.67,28.53]
[1724516878715,1.2386,161.76,161.64,28.53]
[1724516879017,0.04232471,161.72,161.68,0.04126006]
[1724516880721,0.04232471,161.72,161.68,3.13226006]
[1724516880917,0.04232471,161.72,161.7,28.53]
[1724516881315,0.04232471,161.72,161.71,3.0905]
[1724516881615,6.203,161.92,161.7,28.53]
[1724516881816,6.1699,162.01,161.79,28.53]
[1724516881817,3.0878,161.86,161.79,28.53]
[1724516882021,6.1699,162.01,161.79,28.53]
[1724516882219,28.53,161.92,161.77,28.53]
[1724516882417,3.0879,161.85,161.78,3.0891]
[1724516882722,0.04756465,161.83,161.8,0.04681608]
[1724516882924,0.04514512,161.83,161.8,0.03909162]
[1724516883811,0.04514512,161.83,161.8,28.56909162]
[1724516884216,0.04514512,161.83,161.8,0.03909162]
[1724516884528,1.0,162.0,161.81,28.53]
[1724516884752,1.2596,161.96,161.87,28.53]
[1724516885315,28.53,162.01,161.87,28.53]
[1724516885512,0.04691276,161.96,161.92,0.03902457]
[1724516885711,0.04144958,161.96,161.84,28.53]
[1724516885921,0.04144958,161.96,161.88,0.0430989]
[1724516885922,0.04656381,161.92,161.88,0.0430989]
[1724516886220,0.04656381,161.92,161.88,0.04422349]
[1724516886221,0.041383,161.92,161.88,0.04422349]
[1724516886419,28.53,161.9,161.88,0.04422349]
[1724516886611,3.0871,161.89,161.88,0.04422349]
[1724516887717,3.0886,161.81,161.8,50.0]
[1724516888719,3.6875,161.92,161.8,50.0]
[1724516888720,0.04592253,161.82,161.8,50.0]
[1724516888919,0.03904478,161.83,161.8,50.0]
[1724516889111,3.0884,161.82,161.8,50.04554032]
[1724516889518,0.04551323,161.83,161.8,50.04554032]
[1724516890323,3.0886,161.81,161.8,50.04554032]
[1724516890516,0.04551323,161.83,161.8,50.04554032]
[1724516892619,3.0886,161.81,161.8,50.04554032]
[1724516893416,3.0886,161.81,161.8,36.15964032]
[1724516893619,3.0886,161.81,161.8,14.73600535]
[1724516893822,3.0886,161.81,161.8,12.81000535]
[1724516894121,3.0886,161.81,161.8,4.78140535]
[1724516894321,3.0886,161.81,161.8,5.35e-06]
[1724516895620,0.04551323,161.83,161.8,5.35e-06]
[1724516896627,3.0884,161.82,161.8,5.35e-06]
[1724516897224,3.13381323,161.83,161.8,5.35e-06]
[1724516897418,0.04551323,161.83,161.8,5.35e-06]
[1724516898023,28.53,161.94,161.79,28.53]
[1724516898423,3.0877,161.86,161.8,3.0888]
[1724516898622,3.0877,161.86,161.81,1.2148]
[1724516898918,28.53,161.94,161.81,1.2148]
[1724516899125,0.04283097,161.89,161.86,0.04481145]
[1724516901729,0.04283097,161.89,161.87,3.0873]
[1724516902030,0.04283097,161.89,161.87,31.6173]
[1724516902431,0.04283097,161.89,161.86,0.04481145]
[1724516902826,28.53,161.99,161.86,28.53]
[1724516903426,3.0867,161.92,161.86,31.6175]
[1724516903623,6.1662,162.11,161.89,28.53]
[1724516903826,28.53,162.03,161.9,1.2469]
[1724516904027,0.0399624,162.0,161.96,0.03994315]
[1724516904228,3.0856,161.97,161.96,0.03994315]
[1724516904424,28.53,161.97,161.83,1.1989]
[1724516904629,28.53,161.92,161.83,1.1989]
[1724516904828,3.0878,161.86,161.83,1.1989]
[1724516905046,28.53,161.92,161.83,1.1989]
[1724516905531,28.53,161.92,161.86,0.04573206]
[1724516905532,0.03900861,161.89,161.86,0.04573206]
[1724516905927,3.0876,161.87,161.86,0.04573206]
[1724516906157,28.53,161.87,161.73,2.5213]
[1724516906337,28.56900861,161.89,161.73,2.5213]
[1724516906338,28.53,161.8,161.73,2.5213]
[1724516906524,28.53,161.8,161.67,1.3046]
[1724516906728,28.53,161.8,161.68,2.5213]
[1724516906929,3.0903,161.73,161.68,2.5213]
[1724516907137,0.04679564,161.72,161.69,0.04401415]
[1724516907338,28.57498689,161.72,161.69,0.04530296]
[1724516907530,28.53,161.7,161.69,0.04530296]
[1724516907732,28.53,161.7,161.6,1.3042]
[1724516908731,28.53,161.7,161.52,1.2171]
[1724516908732,28.5765885,161.67,161.63,0.04091962]
[1724516908933,28.5718619,161.67,161.63,0.04324782]
[1724516909231,28.53,161.64,161.52,1.2171]
[1724516909431,28.53,161.62,161.52,1.2171]
[1724516909733,28.53,161.62,161.49,1.3111]
[1724516910233,3.0936,161.55,161.54,0.04070582]
[1724516910936,0.04266087,161.57,161.54,0.04070582]
[1724516911751,3.0934,161.56,161.54,0.04070582]
[1724516912341,0.04266087,161.57,161.54,0.04070582]
[1724516912837,3.0936,161.55,161.54,0.04070582]
[1724516913034,28.53,161.56,161.42,1.2123]
[1724516913339,28.53,161.51,161.42,1.2123]
[1724516913534,28.53,161.51,161.41,1.2065]
[1724516914040,3.0952,161.47,161.44,0.03917727]
[1724516914234,0.04707813,161.48,161.44,0.03917727]
[1724516914651,3.14197813,161.48,161.44,0.03917727]
[1724516915341,0.04707813,161.48,161.44,0.03917727]
[1724516915837,3.0955,161.45,161.44,0.03917727]
[1724516916435,90.10351113,161.93,161.44,28.56917727]
[1724516916739,28.53,161.6,161.47,28.53]
[1724516917043,28.53,161.55,161.41,28.53]
[1724516917346,28.53,161.6,161.46,28.53]
[1724516917537,0.04665179,161.55,161.51,0.03985305]
[1724516918739,3.094,161.54,161.51,0.03985305]
[1724516919038,0.04665179,161.55,161.51,0.03985305]
[1724516919246,3.14025179,161.55,161.51,0.03985305]
[1724516919844,3.0939,161.54,161.51,0.03985305]
[1724516920047,0.04665179,161.55,161.51,0.03985305]
[1724516920937,3.0938,161.54,161.51,0.03985305]
[1724516921143,0.04665179,161.55,161.51,0.03985305]
[1724516922946,28.53,161.54,161.51,0.03985305]
[1724516923336,3.0942,161.52,161.51,0.03985305]
[1724516923542,31.6242,161.52,161.51,0.03985305]
[1724516924447,3.0949,161.48,161.4,1.307]
[1724516925249,3.0954,161.46,161.4,1.307]
[1724516925450,0.03910358,161.45,161.41,0.04383175]
[1724516928143,3.0957,161.44,161.41,0.04383175]
[1724516929060,3.096,161.43,161.41,0.04383175]
[1724516929442,0.03910358,161.45,161.41,0.04383175]
[1724516929641,3.0957,161.44,161.41,0.04383175]
[1724516931252,0.03910358,161.45,161.41,0.04383175]
[1724516933451,28.53,161.53,161.4,28.53]
[1724516933756,3.0278497,161.57,161.4,28.53]
[1724516934057,28.53,161.55,161.4,28.53]
[1724516934553,0.03998215,161.49,161.46,0.03961586]
[1724516934748,6.1811,161.71,161.46,0.03961586]
[1724516934972,28.53,161.6,161.45,28.53]
[1724516935159,28.53,161.58,161.46,1.2192]
[1724516935351,28.53,161.58,161.47,3.0951]
[1724516935547,28.53,161.58,161.46,1.2192]
[1724516935753,28.53,161.6,161.47,28.53]
[1724516935954,28.53,161.6,161.5,0.04470016]
[1724516935955,0.04078761,161.54,161.5,0.04470016]
[1724516936253,0.04078761,161.54,161.46,1.2192]
[1724516936451,0.04078761,161.54,161.5,0.04566683]
[1724516937154,28.57078761,161.54,161.5,0.04566683]
[1724516938153,28.53,161.52,161.5,0.04566683]
[1724516938355,3.0944,161.51,161.5,0.04566683]
[1724516938557,0.04078761,161.54,161.5,0.04566683]
[1724516938755,28.53,161.52,161.5,0.04566683]
[1724516938954,0.04078761,161.54,161.5,0.04566683]
[1724516939155,28.57078761,161.54,161.5,0.04566683]
[1724516939368,3.0943,161.52,161.5,0.04566683]
[1724516939559,28.57078761,161.54,161.5,0.04566683]
[1724516940451,28.53,161.52,161.5,0.04566683]
[1724516941050,3.0944,161.51,161.5,0.04566683]
[1724516941758,28.53,161.52,161.41,1.2859]
[1724516942258,28.53,161.52,161.41,4.3822]
[1724516942259,3.0949,161.48,161.41,4.3822]
[1724516942462,28.53,161.52,161.41,4.3822]
[1724516942658,28.53,161.52,161.45,0.04068527]
[1724516942866,3.11987846,161.55,161.45,0.04068527]
[1724516942867,0.04755463,161.48,161.45,0.04068527]
[1724516943053,0.04397026,161.48,161.45,0.04351217]
[1724516943570,3.13907026,161.48,161.45,0.04351217]
[1724516944659,3.0952,161.47,161.45,0.04351217]
[1724516944858,28.53,161.47,161.45,0.04351217]
[1724516945666,3.0953,161.46,161.45,0.04351217]
[1724516947453,31.6251,161.47,161.45,0.04351217]
[1724516947653,0.04397026,161.48,161.45,0.04351217]
[1724516948157,31.6253,161.46,161.45,0.04351217]
[1724516948353,28.53,161.46,161.38,1.2102]
[1724516948661,3.0961,161.42,161.38,1.2102]
[1724516948965,28.53,161.46,161.38,1.2102]
[1724516949156,3.0961,161.43,161.38,1.2102]
[1724516949360,0.03998471,161.42,161.39,0.04542619]
[1724516949790,3.13608471,161.42,161.39,0.04542619]
[1724516950964,28.56998471,161.42,161.39,0.04542619]
[1724516951466,3.0964,161.41,161.39,0.04542619]
[1724516951864,0.03998471,161.42,161.39,0.04542619]
[1724516952661,3.0963,161.41,161.39,0.04542619]
[1724516952857,23.79,161.41,161.39,0.04542619]
[1724516953067,3.0965,161.4,161.39,0.04542619]
[1724516953663,23.79,161.41,161.31,2.3904]
[1724516953871,26.887,161.38,161.31,2.3904]
[1724516954069,23.79,161.38,161.31,2.3904]
[1724516954764,0.04386715,161.36,161.33,0.04394662]
[1724516955468,3.0976,161.34,161.33,0.04394662]
[1724516955670,23.79,161.32,161.28,1.2044]
[1724516955965,23.79,161.32,161.26,1.2335]
[1724516956168,23.79,161.32,161.21,2.3929]
[1724516956481,3.0988,161.28,161.22,1.2335]
[1724516956668,0.04581749,161.28,161.25,0.04144952]
[1724516957770,3.14471749,161.28,161.25,0.04144952]
[1724516958070,0.04581749,161.28,161.25,0.04144952]
[1724516958466,28.55,161.35,161.25,0.04144952]
[1724516958675,28.55,161.37,161.25,28.55]
[1724516958972,28.55,161.4,161.25,28.55]
[1724516959166,3.02670117,161.49,161.22,1.2335]
[1724516959380,28.55,161.45,161.31,28.55]
[1724516959574,0.040902,161.4,161.36,0.04764452]
[1724516960787,28.55,161.47,161.34,28.55]
[1724516961072,28.55,161.5,161.36,28.55]
[1724516961270,28.55,161.52,161.39,28.55]
[1724516961515,63.53230157,161.61,161.41,28.55]
[1724516961774,0.04212426,161.53,161.49,0.04612309]
[1724516962071,28.55,161.51,161.49,0.04459783]
[1724516963374,0.04716912,161.53,161.49,0.04459783]
[1724516963770,0.04716912,161.53,161.51,3.0943]
[1724516963974,0.04716912,161.53,161.49,0.04459783]
[1724516964479,0.04716912,161.53,161.51,3.0943]
[1724516965279,0.04716912,161.53,161.49,0.04459783]
[1724516965482,3.13461819,161.63,161.42,2.4188]
[1724516965483,3.13461819,161.63,161.47,28.55]
[1724516965678,28.55,161.59,161.47,28.55]
[1724516965978,28.55,161.59,161.42,27.1788]
[1724516965979,28.55,161.53,161.42,27.1788]
[1724516966174,28.55,161.53,161.46,3.0953]
[1724516966386,28.55,161.53,161.42,27.1788]
[1724516966577,28.55,161.53,161.48,0.04341089]
[1724516966578,0.04339166,161.51,161.48,0.04341089]
[1724516966784,28.59339166,161.51,161.48,0.04341089]
[1724516967083,3.0947,161.5,161.48,0.04341089]
[1724516967282,28.59339166,161.51,161.48,0.04341089]
[1724516967477,0.04339166,161.51,161.48,0.04341089]
[1724516968679,28.55,161.5,161.48,0.04341089]
[1724516968879,28.55,161.5,161.42,2.4188]
[1724516969081,28.55,161.46,161.42,2.4188]
[1724516969297,28.55,161.46,161.31,53.31]
[1724516969298,3.16666392,161.54,161.32,1.2842]
[1724516969479,28.55,161.46,161.32,2.5924]
[1724516969686,28.55,161.53,161.32,2.5924]
[1724516969687,28.55,161.44,161.32,2.5924]
[1724516969985,28.59109976,161.4,161.36,0.04101618]
[1724516971383,0.04109976,161.4,161.36,0.04101618]
[1724516972093,0.04109976,161.4,161.37,3.097]
[1724516972494,0.04109976,161.4,161.38,3.0967]
[1724516973197,0.04109976,161.4,161.37,3.097]
[1724516973386,0.04109976,161.4,161.36,0.04101618]
[1724516973787,0.04109976,161.4,161.37,3.0969]
[1724516974090,0.04109976,161.4,161.36,0.04101618]
[1724516974292,28.55,161.45,161.36,0.04101618]
[1724516974486,28.55,161.45,161.32,31.1424]
[1724516974691,1.0,161.53,161.34,28.55]
[1724516974900,0.095,161.58,161.37,28.55]
[1724516975087,28.55,161.5,161.37,28.55]
[1724516975394,0.04014154,161.45,161.42,0.04704529]
[1724516975601,0.04549571,161.45,161.42,0.04042295]
[1724516975788,0.095,161.58,161.42,0.04042295]
[1724516975994,28.55,161.52,161.37,28.55]
[1724516976502,28.55,161.54,161.4,28.55]
[1724516976706,0.04641409,161.49,161.45,0.04698412]
[1724516977001,28.55,161.56,161.45,0.04698412]
[1724516977201,3.13461819,161.63,161.43,28.55]
[1724516977495,28.55,161.57,161.45,28.55]
[1724516977887,0.04076119,161.53,161.49,0.04508055]
[1724516978085,28.55,161.51,161.49,0.04108943]
[1724516978989,28.55,161.51,161.41,2.4806]
[1724516979199,28.55,161.45,161.41,2.4806]
[1724516979995,28.55,161.68,161.53,258.0]
[1724516980190,0.04027742,161.62,161.59,0.04311437]
[1724516980400,0.04027742,161.62,161.59,0.03961743]
[1724516980401,0.04695046,161.62,161.59,0.03961743]
[1724516981392,0.04695046,161.62,161.47,28.55]
[1724516981593,28.55,161.57,161.44,28.55]
[1724516981791,28.55,161.6,161.47,28.55]
[1724516982409,28.55,161.63,161.5,28.55]
[1724516982697,0.03943958,161.58,161.57,3.0932]
[1724516982901,0.04128727,161.59,161.56,0.04653687]
[1724516983093,28.55,161.63,161.56,0.03958909]
[1724516983291,0.0420774,161.59,161.56,0.03958909]
[1724516983598,0.04620108,161.59,161.57,3.0932]
[1724516984301,1.3062,161.68,161.55,28.55]
[1724516985009,1.3062,161.68,161.56,2.5944]
[1724516985221,28.55,161.66,161.56,2.5944]
[1724516985398,3.0921,161.63,161.56,2.5944]
[1724516985597,0.04440245,161.64,161.6,0.04007203]
[1724516986005,28.55,161.63,161.6,0.04007203]
[1724516986200,0.04440245,161.64,161.47,1.2918]
[1724516986201,28.55,161.61,161.47,1.2918]
[1724516986507,3.093,161.58,161.51,3.0943]
[1724516987104,0.04055584,161.56,161.53,0.04037397]
[1724516988907,1.3188,161.67,161.54,28.55]
[1724516989105,1.3188,161.67,161.56,28.55]
[1724516989302,1.3188,161.67,161.57,1.3142]
[1724516989503,1.3188,161.67,161.57,4.4074]
[1724516990005,0.03933424,161.64,161.6,0.04763816]
[1724516991408,0.03933424,161.64,161.6,3.14013816]
[1724516991710,0.03933424,161.64,161.6,0.04763816]
[1724516992611,0.03933424,161.64,161.6,3.14013816]
[1724516992807,0.03933424,161.64,161.6,0.04763816]
[1724516994312,3.13123424,161.64,161.6,0.04763816]
[1724516994918,0.03933424,161.64,161.6,0.04763816]
[1724516995112,28.58933424,161.64,161.6,0.04763816]
[1724516995416,28.55,161.61,161.48,28.55]
[1724516996009,28.55,161.59,161.46,29.826]